bitfinex/quotes_SOLUSD_20220212
["timestamp","ask_amount","ask_price","bid_price","bid_amount"]
[1644650275481,5.251,95.254,95.18,15.7575]
[1644650275885,7.63466791,95.254,95.18,15.7575]
[1644650276084,2.38366791,95.254,95.18,15.7575]
[1644650276985,42.22291019,95.257,95.18,15.7575]
[1644650277584,42.22291019,95.257,95.181,2.38366791]
[1644650279486,5.251,95.279,95.19,15.7552]
[1644650279684,5.251,95.286,95.19,15.7552]
[1644650279885,5.25,95.308,95.2,15.13]
[1644650280085,48.5829,95.309,95.201,5.249]
[1644650280285,48.5829,95.309,95.201,7.63266791]
[1644650280485,39.96308153,95.308,95.202,42.30792751]
[1644650280686,39.96308153,95.308,95.203,5.249]
[1644650280886,39.96308153,95.308,95.203,7.63266791]
[1644650281087,39.96308153,95.308,95.204,2.38366791]
[1644650281287,39.96308153,95.308,95.205,5.249]
[1644650281786,39.96308153,95.308,95.23,15.7495]
[1644650281986,39.96308153,95.308,95.231,41.0429304]
[1644650284489,5.248,95.307,95.231,41.0429304]
[1644650284788,5.248,95.307,95.231,43.42659831]
[1644650285189,39.96308153,95.308,95.24,15.7475]
[1644650286890,5.248,95.319,95.241,2.38366791]
[1644650287090,0.04001836,95.33,95.25,15.7452]
[1644650287490,0.04001836,95.33,95.251,2.38366791]
[1644650287692,0.04001836,95.33,95.251,7.63066791]
[1644650288094,0.04001836,95.33,95.252,46.32688907]
[1644650288292,0.04001836,95.33,95.26,15.7442]
[1644650288492,42.97850142,95.337,95.26,15.7442]
[1644650288693,42.97850142,95.337,95.261,7.62966791]
[1644650288895,42.97850142,95.337,95.261,2.38366791]
[1644650289094,0.04001836,95.35,95.262,7.62966791]
[1644650289293,0.04001836,95.33,95.27,15.7419]
[1644650289493,0.04001836,95.35,95.27,15.7419]
[1644650289694,0.04001836,95.37,95.271,54.91496791]
[1644650289894,0.04001836,95.35,95.271,54.91496791]
[1644650290093,0.04001836,95.35,95.272,43.42659831]
[1644650290295,0.04001836,95.36,95.29,15.7388]
[1644650290496,46.97850051,95.368,95.292,39.06554081]
[1644650290695,0.04001836,95.36,95.292,39.06554081]
[1644650290895,46.97850051,95.368,95.292,39.06554081]
[1644650291099,46.97850051,95.368,95.293,2.38366791]
[1644650291300,5.244,95.367,95.293,2.38366791]
[1644650291697,5.244,95.367,95.292,39.06554081]
[1644650293299,5.244,95.367,95.3,15.7375]
[1644650293498,46.97850051,95.368,95.3,15.7375]
[1644650293699,5.244,95.367,95.3,15.7375]
[1644650294299,5.244,95.367,95.31,15.7357]
[1644650294501,46.97850051,95.368,95.311,37.45414973]
[1644650294702,46.97850051,95.368,95.311,39.83781764]
[1644650295001,46.97850051,95.368,95.311,37.45414973]
[1644650297401,46.97850051,95.368,95.312,2.38366791]
[1644650297604,5.244,95.379,95.312,2.38366791]
[1644650298004,5.244,95.388,95.312,2.38366791]
[1644650298207,5.244,95.388,95.29,15.7393]
[1644650298404,2.38366791,95.378,95.29,15.7393]
[1644650298605,5.244,95.377,95.29,15.7393]
[1644650299106,40.01936118,95.376,95.291,37.97872509]
[1644650299307,5.244,95.375,95.291,37.97872509]
[1644650299504,40.01936118,95.376,95.291,37.97872509]
[1644650300506,5.244,95.375,95.291,37.97872509]
[1644650300707,5.244,95.375,95.291,43.22272509]
[1644650301209,2.38366791,95.374,95.27,15.7421]
[1644650301410,15.17001836,95.36,95.27,15.7421]
[1644650301607,5.245,95.359,95.276,1.6944099]
[1644650301810,17.55368627,95.36,95.276,1.6944099]
[1644650302007,39.13072309,95.359,95.277,41.62524881]
[1644650302206,44.37572309,95.359,95.277,41.62524881]
[1644650302607,44.37572309,95.359,95.28,15.7408]
[1644650302907,39.13072309,95.359,95.281,5.245]
[1644650303507,2.38366791,95.358,95.281,5.245]
[1644650303708,2.38366791,95.358,95.28,15.7408]
[1644650303909,5.245,95.357,95.276,1.6944099]
[1644650304108,7.62866791,95.358,95.276,1.6944099]
[1644650304312,2.38366791,95.356,95.276,1.6944099]
[1644650304509,5.245,95.355,95.276,1.6944099]
[1644650304710,189.15,95.35,95.276,1.6944099]
[1644650304911,15.7504,95.33,95.276,1.6944099]
[1644650305109,15.13,95.32,95.276,1.6944099]
[1644650306612,5.246,95.319,95.276,1.6944099]
[1644650307710,42.97454911,95.328,95.276,1.6944099]
[1644650307910,5.246,95.327,95.276,1.6944099]
[1644650308112,42.97454911,95.328,95.276,1.6944099]
[1644650308510,5.246,95.327,95.276,1.6944099]
[1644650308711,42.97454911,95.328,95.276,1.6944099]
[1644650309712,5.246,95.327,95.276,1.6944099]
[1644650311415,5.246,95.327,95.233,5.246]
[1644650311615,49.5605,95.326,95.231,5.247]
[1644650311816,5.247,95.325,95.232,4.68232226]
[1644650312017,49.5605,95.326,95.231,9.92932226]
[1644650312216,5.247,95.324,95.232,4.68232226]
[1644650312415,5.247,95.325,95.231,4.68232226]
[1644650312614,5.247,95.323,95.231,4.68232226]
[1644650312834,5.247,95.325,95.231,4.68232226]
[1644650314516,5.247,95.325,95.23,15.7491]
[1644650316719,15.7524,95.32,95.214,2.96776644]
[1644650317018,15.13,95.31,95.212,4.68390835]
[1644650317222,28.7861,95.309,95.205,2.96776644]
[1644650317419,31.16976791,95.309,95.213,4.68430609]
[1644650317617,31.16976791,95.309,95.206,5.248]
[1644650317618,50.63979295,95.308,95.207,4.68430609]
[1644650317818,5.248,95.307,95.198,2.96776644]
[1644650318017,7.63166791,95.307,95.207,5.248]
[1644650318218,7.63166791,95.307,95.194,2.96776644]
[1644650318219,2.38366791,95.306,95.192,2.96776644]
[1644650318419,5.249,95.305,95.197,4.68151931]
[1644650318621,15.7564,95.3,95.198,41.98727973]
[1644650318820,48.51725086,95.289,95.198,41.98727973]
[1644650319020,28.8587,95.288,95.198,41.98727973]
[1644650320421,28.8587,95.288,95.199,5.249]
[1644650322027,28.8587,95.288,95.2,15.754]
[1644650322229,23.6097,95.288,95.201,5.249]
[1644650322628,48.51725086,95.289,95.199,5.249]
[1644650323026,48.51725086,95.289,95.199,21.62576337]
[1644650323230,48.51725086,95.289,95.2,16.37676337]
[1644650323429,48.51725086,95.289,95.21,15.7524]
[1644650323627,48.51725086,95.289,95.221,39.58070363]
[1644650324029,5.249,95.318,95.221,39.58070363]
[1644650324327,5.248,95.308,95.221,39.58070363]
[1644650324529,46.6749,95.319,95.222,5.248]
[1644650324732,5.248,95.307,95.221,39.58070363]
[1644650324929,7.63166791,95.318,95.221,39.58070363]
[1644650325130,40.72323321,95.317,95.221,39.58070363]
[1644650325332,5.248,95.316,95.221,39.58070363]
[1644650325529,7.63166791,95.316,95.221,39.58070363]
[1644650325930,2.38366791,95.315,95.221,39.58070363]
[1644650326131,5.248,95.316,95.222,5.248]
[1644650327433,40.72323321,95.317,95.23,15.7491]
[1644650327635,5.248,95.316,95.23,15.7491]
[1644650330559,5.248,95.316,95.221,41.05475051]
[1644650330759,2.38366791,95.315,95.221,39.58070363]
[1644650330960,15.13,95.31,95.221,39.58070363]
[1644650331160,5.248,95.309,95.213,1.47404688]
[1644650331361,7.63166791,95.309,95.213,1.47404688]
[1644650331560,2.38366791,95.308,95.21,1.47404688]
[1644650331759,29.2923,95.307,95.208,1.47404688]
[1644650331960,15.7556,95.3,95.207,1.47404688]
[1644650332159,15.13,95.29,95.208,46.65810175]
[1644650332359,5.249,95.289,95.205,1.47404688]
[1644650332763,46.1893,95.288,95.205,1.47404688]
[1644650332961,5.249,95.287,95.197,1.47404688]
[1644650333162,5.249,95.287,95.196,1.47404688]
[1644650333360,5.249,95.287,95.198,42.20113212]
[1644650333761,5.249,95.287,95.201,1.47404688]
[1644650333964,5.249,95.287,95.2,1.47404688]
[1644650334162,5.249,95.287,95.201,1.47404688]
[1644650334562,5.249,95.287,95.199,1.47404688]
[1644650334761,2.38366791,95.286,95.199,1.47404688]
[1644650334961,5.249,95.285,95.194,1.47404688]
[1644650335164,5.249,95.285,95.193,1.47404688]
[1644650335165,15.13,95.27,95.193,1.47404688]
[1644650335362,29.3311,95.269,95.193,1.47404688]
[1644650335762,40.97416996,95.268,95.194,43.0357865]
[1644650335964,40.97416996,95.268,95.195,5.25]
[1644650336164,40.97416996,95.268,95.203,1.47404688]
[1644650336363,40.97416996,95.268,95.195,5.25]
[1644650336364,40.97416996,95.268,95.205,1.47404688]
[1644650336765,40.97416996,95.268,95.206,1.47404688]
[1644650337568,40.97416996,95.268,95.2,1.47404688]
[1644650337771,5.25,95.267,95.2,1.47404688]
[1644650337968,5.25,95.267,95.199,1.47404688]
[1644650339472,5.25,95.267,95.2,1.47404688]
[1644650340276,5.25,95.267,95.199,1.47404688]
[1644650340476,5.25,95.267,95.197,1.47404688]
[1644650340877,5.25,95.267,95.196,1.47404688]
[1644650341278,40.97416996,95.268,95.196,1.47404688]
[1644650341478,5.25,95.267,95.196,1.47404688]
[1644650341875,5.25,95.267,95.197,1.47404688]
[1644650342076,5.25,95.267,95.198,1.47404688]
[1644650342275,5.25,95.267,95.2,1.47404688]
[1644650342675,5.25,95.268,95.2,1.47404688]
[1644650342885,5.25,95.268,95.2,15.7541]
[1644650343075,5.25,95.287,95.209,1.47404688]
[1644650343276,5.25,95.299,95.209,1.47404688]
[1644650343476,40.13583395,95.287,95.215,1.47404688]
[1644650343677,45.38483395,95.287,95.215,1.47404688]
[1644650343877,45.38483395,95.287,95.216,1.47404688]
[1644650344078,40.13583395,95.287,95.217,1.47404688]
[1644650344478,5.249,95.298,95.217,1.47404688]
[1644650344679,5.249,95.298,95.221,1.47404688]
[1644650344879,23.2468,95.299,95.223,1.47404688]
[1644650345079,5.249,95.319,95.223,1.47404688]
[1644650345279,5.249,95.319,95.21,52.91377549]
[1644650345280,0.04001836,95.32,95.244,1.47404688]
[1644650345482,0.04001836,95.32,95.25,1.47404688]
[1644650345679,23.4754,95.324,95.253,1.47404688]
[1644650346082,23.4754,95.324,95.254,5.247]
[1644650346279,23.4754,95.324,95.254,1.47404688]
[1644650346479,23.4754,95.324,95.256,1.47404688]
[1644650347081,23.4754,95.324,95.255,1.47404688]
[1644650347481,23.4754,95.324,95.256,1.47404688]
[1644650347685,23.4754,95.324,95.251,2.38366791]
[1644650348587,5.247,95.329,95.26,15.7441]
[1644650348790,0.04001836,95.34,95.26,15.7441]
[1644650348986,23.1932,95.369,95.273,1.47404688]
[1644650348987,0.04001836,95.35,95.273,1.47404688]
[1644650349187,47.48469446,95.358,95.277,35.90413923]
[1644650349385,47.48469446,95.358,95.278,1.47404688]
[1644650349586,47.48469446,95.358,95.279,1.47404688]
[1644650349787,47.48469446,95.358,95.281,1.47404688]
[1644650349985,47.48469446,95.358,95.281,9.49404688]
[1644650350185,47.48469446,95.358,95.282,7.62866791]
[1644650350589,47.48469446,95.358,95.283,2.38366791]
[1644650350785,47.48469446,95.358,95.29,15.7383]
[1644650350986,47.48469446,95.358,95.292,35.63056349]
[1644650351786,23.1932,95.369,95.292,35.63056349]
[1644650352789,48.8126815,95.368,95.292,35.63056349]
[1644650352989,48.8126815,95.368,95.293,5.244]
[1644650353193,5.244,95.367,95.292,35.63056349]
[1644650354504,5.244,95.367,95.29,15.7383]
[1644650354706,2.38366791,95.366,95.262,5.245]
[1644650355005,0.04001836,95.36,95.26,15.7422]
[1644650355205,5.245,95.359,95.26,15.7422]
[1644650355606,7.62866791,95.359,95.261,43.32520203]
[1644650355808,2.38366791,95.358,95.261,43.32520203]
[1644650356005,29.2268,95.357,95.261,43.32520203]
[1644650356405,2.38366791,95.356,95.261,43.32520203]
[1644650356605,5.246,95.355,95.261,43.32520203]
[1644650356805,5.246,95.356,95.261,43.32520203]
[1644650363810,5.246,95.356,95.261,48.57120203]
[1644650368513,2.38366791,95.355,95.261,5.246]
[1644650368719,5.246,95.354,95.261,5.246]
[1644650368914,15.13,95.34,95.261,5.246]
[1644650369115,5.246,95.339,95.261,5.246]
[1644650369313,7.62966791,95.339,95.261,5.246]
[1644650369516,46.65824713,95.338,95.261,5.246]
[1644650369715,5.246,95.337,95.261,5.246]
[1644650369914,7.62966791,95.337,95.261,5.246]
[1644650370316,2.38366791,95.336,95.261,5.246]
[1644650370517,5.246,95.335,95.261,5.246]
[1644650370719,15.13,95.32,95.252,1.6944099]
[1644650371117,41.03344277,95.319,95.252,1.6944099]
[1644650372318,22.6251,95.318,95.252,1.6944099]
[1644650372517,5.247,95.317,95.252,1.6944099]
[1644650373125,5.247,95.317,95.252,41.19149472]
[1644650374730,5.247,95.317,95.252,1.6944099]
[1644650376929,22.6251,95.318,95.252,1.6944099]
[1644650377529,38.5058,95.318,95.252,1.6944099]
[1644650377730,5.247,95.317,95.252,1.6944099]
[1644650378735,5.247,95.317,95.253,44.07192993]
[1644650382935,22.6251,95.318,95.253,44.07192993]
[1644650384138,46.00572452,95.317,95.253,44.07192993]
[1644650384340,5.247,95.316,95.253,44.07192993]
[1644650384539,22.6251,95.318,95.253,44.07192993]
[1644650385038,22.6251,95.318,95.253,45.54597681]
[1644650385239,0.04001836,95.33,95.253,45.54597681]
[1644650385436,0.04001836,95.33,95.254,1.47404688]
[1644650385638,0.04001836,95.33,95.253,45.54597681]
[1644650386037,0.04001836,95.33,95.259,1.47404688]
[1644650386238,42.04044487,95.332,95.26,1.47404688]
[1644650386438,0.04001836,95.33,95.263,1.47404688]
[1644650386639,42.04044487,95.332,95.263,1.47404688]
[1644650386842,42.04044487,95.332,95.264,5.246]
[1644650387239,42.04044487,95.332,95.261,5.246]
[1644650387440,0.04001836,95.33,95.257,1.47404688]
[1644650387740,0.04001836,95.33,95.256,1.47404688]
[1644650387957,5.247,95.329,95.256,1.47404688]
[1644650388559,5.247,95.329,95.262,0.00404688]
[1644650388760,5.247,95.329,95.243,0.00404688]
[1644650388761,15.13,95.32,95.243,0.00404688]
[1644650388960,5.247,95.319,95.212,2.96776644]
[1644650389160,5.247,95.319,95.172,12.90783751]
[1644650389161,41.99797576,95.319,95.193,4.72202068]
[1644650389364,56.92184718,95.319,95.181,2.96776644]
[1644650389661,38.80767912,95.317,95.193,42.91007234]
[1644650389861,47.24963482,95.289,95.193,42.91007234]
[1644650390162,15.13,95.28,95.193,42.91007234]
[1644650390363,5.25,95.279,95.193,42.91007234]
[1644650391565,5.25,95.279,95.194,7.09930624]
[1644650391762,15.13,95.28,95.194,7.09930624]
[1644650391763,45.5686,95.288,95.195,4.71563833]
[1644650391967,45.5686,95.288,95.203,2.96776644]
[1644650392163,45.5686,95.288,95.2,2.96776644]
[1644650392364,45.5686,95.288,95.211,42.07607922]
[1644650392564,5.249,95.287,95.211,42.07607922]
[1644650392965,45.5686,95.288,95.211,42.07607922]
[1644650393365,45.5686,95.288,95.212,5.249]
[1644650393565,5.249,95.287,95.212,4.71590172]
[1644650393766,5.249,95.287,95.211,42.07607922]
[1644650394265,41.74388655,95.286,95.211,42.07607922]
[1644650394468,5.249,95.285,95.211,42.07607922]
[1644650394667,41.74388655,95.286,95.211,42.07607922]
[1644650396077,5.249,95.285,95.211,42.07607922]
[1644650399675,41.74388655,95.286,95.211,42.07607922]
[1644650399873,5.249,95.285,95.211,42.07607922]
[1644650409287,45.5686,95.288,95.211,42.07607922]
[1644650409688,5.249,95.287,95.211,42.07607922]
[1644650409988,15.79184436,95.33,95.211,42.07607922]
[1644650409989,5.249,95.309,95.211,42.07607922]
[1644650410187,40.16450028,95.311,95.212,28.2575]
[1644650410385,40.16450028,95.311,95.212,52.8275]
[1644650410386,5.248,95.31,95.212,52.8275]
[1644650410586,40.16450028,95.311,95.22,15.7505]
[1644650410789,5.248,95.31,95.221,5.248]
[1644650410989,70.8595,95.329,95.23,15.13]
[1644650411187,47.4261,95.329,95.23,15.13]
[1644650411589,47.4261,95.329,95.231,2.38366791]
[1644650411788,39.68182382,95.328,95.232,29.0999]
[1644650411990,44.92882382,95.328,95.232,23.8529]
[1644650412493,44.92882382,95.328,95.233,5.247]
[1644650412891,44.92882382,95.328,95.241,40.85479747]
[1644650416321,44.92882382,95.328,95.242,5.247]
[1644650418720,44.92882382,95.328,95.17,0.024]
[1644650418721,15.13,95.32,95.221,24.2886]
[1644650418920,15.13,95.32,95.213,5.248]
[1644650418921,5.248,95.319,95.213,5.248]
[1644650419122,7.63166791,95.319,95.21,15.7496]
[1644650419324,2.38366791,95.318,95.21,15.7496]
[1644650419521,5.248,95.317,95.21,15.7496]
[1644650419722,41.05210785,95.317,95.213,43.95439716]
[1644650419921,2.38366791,95.316,95.213,43.95439716]
[1644650420120,15.754,95.31,95.213,43.95439716]
[1644650420326,15.13,95.3,95.213,43.95439716]
[1644650420521,36.85272246,95.298,95.213,43.95439716]
[1644650420721,5.249,95.297,95.213,43.95439716]
[1644650421122,24.3098,95.296,95.213,43.95439716]
[1644650421322,5.249,95.295,95.213,43.95439716]
[1644650422127,5.249,95.295,95.22,15.7495]
[1644650422327,24.3098,95.296,95.221,5.248]
[1644650423624,36.85272246,95.298,95.23,15.7479]
[1644650423825,23.0047,95.318,95.23,15.7479]
[1644650424026,5.248,95.317,95.231,23.5129]
[1644650424927,39.5206153,95.316,95.231,23.5129]
[1644650425331,39.5206153,95.316,95.232,5.248]
[1644650426730,5.248,95.315,95.232,5.248]
[1644650427032,5.248,95.315,95.231,23.5129]
[1644650429035,5.248,95.315,95.23,15.7479]
[1644650429036,2.38366791,95.314,95.214,5.248]
[1644650429235,5.248,95.313,95.214,23.4391]
[1644650429636,2.38366791,95.312,95.214,23.4391]
[1644650429836,5.248,95.315,95.214,23.4391]
[1644650432338,15.13,95.31,95.214,23.4391]
[1644650432537,5.248,95.309,95.214,23.4391]
[1644650440148,5.248,95.309,95.22,15.7499]
[1644650440369,5.248,95.309,95.22,15.7739]
[1644650442855,5.248,95.309,95.221,5.248]
[1644650443256,5.248,95.315,95.221,5.248]
[1644650443458,5.248,95.315,95.23,15.7722]
[1644650443657,5.248,95.315,95.231,23.6901]
[1644650444460,0.03934436,95.31,95.231,23.6901]
[1644650444660,5.248,95.309,95.231,23.6901]
[1644650447165,0.03934436,95.31,95.231,23.6901]
[1644650448377,5.248,95.309,95.231,23.6901]
[1644650450177,2.38366791,95.308,95.22,0.024]
[1644650450377,29.0875,95.307,95.22,0.024]
[1644650450779,2.38366791,95.306,95.22,0.024]
[1644650450977,5.248,95.305,95.22,0.024]
[1644650451381,7.63166791,95.305,95.22,0.024]
[1644650451577,2.38366791,95.305,95.22,0.024]
[1644650451777,5.248,95.304,95.22,0.024]
[1644650451978,15.13,95.3,95.22,0.024]
[1644650452180,5.248,95.299,95.22,0.024]
[1644650454179,5.248,95.299,95.167,4.45064963]
[1644650454180,25.88836791,95.298,95.2,0.024]
[1644650454480,7.63266791,95.297,95.19,0.024]
[1644650454680,7.63266791,95.297,95.2,0.024]
[1644650454879,2.38366791,95.296,95.19,0.024]
[1644650455083,15.7574,95.29,95.19,0.024]
[1644650455281,35.94599448,95.279,95.19,0.024]
[1644650455480,29.1797,95.278,95.19,0.024]
[1644650455683,31.56336791,95.278,95.19,0.024]
[1644650456082,2.38366791,95.277,95.19,0.024]
[1644650456281,5.25,95.276,95.19,0.024]
[1644650456682,2.38366791,95.275,95.19,0.024]
[1644650456887,15.7603,95.27,95.19,0.024]
[1644650457086,30.8903,95.27,95.179,40.67726544]
[1644650457284,5.25,95.269,95.18,0.024]
[1644650460487,2.38366791,95.268,95.18,0.024]
[1644650460688,5.25,95.267,95.18,0.024]
[1644650460994,47.3457,95.266,95.18,0.024]
[1644650461189,5.25,95.265,95.18,0.024]
[1644650462589,7.63366791,95.265,95.18,0.024]
[1644650465290,5.25,95.265,95.18,0.024]
[1644650465591,2.38366791,95.264,95.18,0.024]
[1644650465791,15.13,95.26,95.18,0.024]
[1644650465989,5.25,95.259,95.17,0.024]
[1644650466390,7.63366791,95.259,95.17,0.024]
[1644650466589,2.38366791,95.258,95.17,0.024]
[1644650466790,5.251,95.257,95.17,0.024]
[1644650467189,2.38366791,95.256,95.17,0.024]
[1644650467591,28.147,95.255,95.17,0.024]
[1644650467991,2.38366791,95.254,95.17,0.024]
[1644650468191,5.251,95.253,95.17,0.024]
[1644650468592,2.38366791,95.252,95.17,0.024]
[1644650468796,5.251,95.254,95.17,0.024]
[1644650469092,5.251,95.252,95.17,0.024]
[1644650469298,5.251,95.254,95.17,0.024]
[1644650472800,2.38366791,95.253,95.17,0.024]
[1644650473003,5.251,95.252,95.17,0.024]
[1644650473403,22.896,95.255,95.17,0.024]
[1644650474910,5.251,95.254,95.17,0.024]
[1644650475113,15.7639,95.25,95.17,0.024]
[1644650475310,15.13,95.24,95.16,0.024]
[1644650475511,15.13,95.24,95.17,0.024]
[1644650475712,15.13,95.24,95.123,23.3726]
[1644650475713,7.63566791,95.239,95.15,0.024]
[1644650475913,45.25402667,95.238,95.15,0.024]
[1644650476113,29.7852,95.237,95.15,0.024]
[1644650476312,32.16886791,95.237,95.15,0.024]
[1644650476512,42.94872021,95.237,95.15,0.024]
[1644650476711,13.16352021,95.236,95.15,0.024]
[1644650476917,15.7694,95.22,95.15,0.024]
[1644650477113,15.13,95.21,95.13,0.024]
[1644650477313,48.66121936,95.209,95.13,0.024]
[1644650477515,5.253,95.208,95.13,0.024]
[1644650477917,29.6346,95.208,95.13,0.024]
[1644650478113,68.38366791,95.207,95.103,2.96776644]
[1644650478312,5.253,95.206,95.11,0.024]
[1644650478513,18.41652021,95.206,95.11,0.024]
[1644650478713,13.16352021,95.205,95.09,0.024]
[1644650478913,40.06356694,95.189,95.09,0.024]
[1644650479114,15.7758,95.18,95.09,0.024]
[1644650479314,5.255,95.179,95.09,0.024]
[1644650479714,23.8115,95.178,95.09,0.024]
[1644650480114,5.255,95.177,95.09,0.024]
[1644650480315,15.777,95.17,95.09,0.024]
[1644650480516,40.68080343,95.168,95.09,0.024]
[1644650480721,29.1823,95.167,95.09,0.024]
[1644650482039,15.779,95.16,95.08,0.024]
[1644650482236,15.13,95.15,95.08,0.024]
[1644650482439,29.3978,95.149,95.065,24.5791]
[1644650482736,41.05856499,95.148,95.066,47.9974189]
[1644650482936,5.257,95.147,95.066,47.9974189]
[1644650489848,5.257,95.147,95.05,15.779]
[1644650490442,5.257,95.147,95.065,23.4295]
[1644650490841,5.257,95.147,95.066,42.42001777]
[1644650492446,5.257,95.147,95.065,23.4295]
[1644650492644,5.257,95.147,95.03,21.0392]
[1644650492645,7.64066791,95.147,95.03,21.0392]
[1644650492944,10.94596341,95.146,95.031,22.6997]
[1644650493144,5.258,95.145,95.031,22.6997]
[1644650493344,43.81552552,95.129,95.04,0.024]
[1644650493544,53.7843,95.128,95.04,0.024]
[1644650494747,2.38366791,95.127,95.04,0.024]
[1644650494951,5.258,95.126,95.04,0.024]
[1644650495347,5.258,95.127,95.04,0.024]
[1644650495548,2.38366791,95.125,95.04,0.024]
[1644650495749,5.258,95.124,95.04,0.024]
[1644650495949,42.5419822,95.109,95.04,0.024]
[1644650496151,5.259,95.108,95.031,58.04471077]
[1644650496350,5.259,95.108,95.031,22.6997]
[1644650497752,5.259,95.108,95.03,0.024]
[1644650497953,5.259,95.108,95.02,0.024]
[1644650504361,5.259,95.108,95.021,2.38366791]
[1644650504564,5.259,95.108,95.023,2.96776644]
[1644650504762,5.259,95.127,95.03,0.024]
[1644650504963,5.259,95.141,95.031,5.258]
[1644650505165,65.51100712,95.149,95.043,2.96776644]
[1644650505365,65.51100712,95.149,95.052,2.96776644]
[1644650505564,65.51100712,95.149,95.06,55.56926644]
[1644650505762,5.257,95.178,95.07,15.13]
[1644650505962,5.257,95.158,95.07,15.154]
[1644650506262,15.13,95.2,95.08,0.024]
[1644650506461,15.13,95.2,95.08,15.154]
[1644650506462,5.255,95.199,95.08,15.154]
[1644650506761,34.30691935,95.198,95.11,15.7687]
[1644650506963,34.30691935,95.198,95.111,35.49537741]
[1644650507161,5.253,95.214,95.111,37.87904532]
[1644650507364,5.253,95.239,95.12,0.024]
[1644650507566,5.253,95.249,95.12,0.024]
[1644650507764,5.253,95.249,95.121,2.38366791]
[1644650508167,38.76485817,95.248,95.13,15.7655]
[1644650508367,5.252,95.247,95.14,0.024]
[1644650508669,7.63566791,95.247,95.14,0.024]
[1644650508867,2.38366791,95.246,95.14,0.024]
[1644650509068,5.252,95.245,95.14,0.024]
[1644650509468,2.38366791,95.244,95.14,0.024]
[1644650509668,15.13,95.24,95.14,0.024]
[1644650509871,30.8958,95.24,95.14,0.024]
[1644650510070,7.63566791,95.239,95.14,0.024]
[1644650510473,2.38366791,95.238,95.14,0.024]
[1644650510770,5.252,95.237,95.14,0.024]
[1644650510969,22.54502389,95.237,95.14,0.024]
[1644650511168,2.38366791,95.236,95.14,0.024]
[1644650511371,15.7676,95.23,95.14,0.024]
[1644650511569,43.54088672,95.228,95.14,0.024]
[1644650511770,5.252,95.227,95.14,0.024]
[1644650511969,7.63566791,95.227,95.14,0.024]
[1644650512370,2.38366791,95.226,95.14,0.024]
[1644650512571,5.253,95.225,95.14,0.024]
[1644650512871,2.38366791,95.224,95.14,0.024]
[1644650513273,30.8992,95.22,95.14,0.024]
[1644650513573,5.253,95.219,95.12,0.024]
[1644650513773,7.63666791,95.219,95.12,0.024]
[1644650513973,2.38366791,95.218,95.12,0.024]
[1644650514272,5.253,95.217,95.121,48.44254666]
[1644650514474,15.13,95.22,95.121,53.69554666]
[1644650515276,15.13,95.22,95.121,51.31187875]
[1644650515692,5.253,95.219,95.121,51.31187875]
[1644650515891,5.253,95.219,95.13,15.7654]
[1644650516893,5.253,95.219,95.14,15.7631]
[1644650517193,5.253,95.238,95.141,42.04657131]
[1644650518092,5.253,95.238,95.15,15.7621]
[1644650518297,5.252,95.239,95.15,15.7861]
[1644650519694,5.252,95.246,95.15,15.7861]
[1644650519895,5.252,95.249,95.15,15.7861]
[1644650521098,5.252,95.227,95.15,15.7861]
[1644650526005,128.13,95.25,95.15,15.7861]
[1644650527004,15.13,95.25,95.15,15.7861]
[1644650527204,5.252,95.227,95.15,15.7861]
[1644650527404,7.63566791,95.227,95.141,42.04657131]
[1644650527604,2.38366791,95.226,95.141,42.04657131]